[Event "Fagernes Chess GM-Swiss 2025"]
[Site "Fagernes"]
[Date "2025.04.17"]
[Round "6.9"]
[White "Kantor, Gergely"]
[Black "Melaa, Sondre"]
[Result "1-0"]
[Annotator "TA"]
[ECO "C54"]
[WhiteElo "2578"]
[BlackElo "2344"]
[PlyCount "79"]
[EventDate "2025.04.12"]
[EventCountry "NOR"]
[SourceTitle "playchess.com"]
[Source "ChessBase"]
[SourceQuality "1"]
[TimeControl "40/6000+30:2400+30"]

{[%evp 11,79,21,22,8,12,8,22,7,34,0,-12,0,0,0,0,-4,0,-27,-9,-29,-26,-51,-37,-87,-52,-74,98,97,91,105,104,104,301,297,312,304,329,289,327,309,325,325,301,313,344,339,537,533,587,583,563,524,608,392,362,347,252,198,178,169,266,158,172,164,248,225,256,259,1172,1160]} 1. e4 {[%emt 0:00:31]} e5 {[%emt 0:05:11]} 2. Nf3 {[%emt 0:00:03]} Nc6 {[%emt 0:00:26]} 3. Bc4 {[%emt 0:00:01]} Nf6 {[%emt 0:00:16]} 4. d3 {[%emt 0:00:02]} Bc5 {[%emt 0:00:12]} 5. c3 {[%emt 0:00:03]} a6 {[%emt 0:00:34]} 6. O-O {[%emt 0:00:46]} d6 {[%emt 0:00:42]} 7. Bg5 {[%emt 0:00:20]} h6 {[%emt 0:00:32]} 8. Bh4 {[%emt 0:00:02]} Ba7 {[%emt 0:00:33]} 9. Nbd2 {[%emt 0:00:17] The position is equal.} Qe7 {[%emt 0:01:55]} 10. a4 {[%emt 0:01:25]} (10. b4 $14) 10... g5 $11 {[%emt 0:00:45][%cal Bg7g5,Bg5g4][%mdl 32]} 11. Bg3 {[%emt 0:00:02]} Nd7 {[%emt 0:00:51]} 12. b4 {[%emt 0:00:03][%cal Bb2b4,Bb4b5][%mdl 32]} Nf8 {[%emt 0:00:32]} 13. b5 {[%emt 0:00:01]} Na5 {[%emt 0:01:01]} 14. Bd5 {[%emt 0:00:10]} h5 {[%emt 0:06:32] ...h4 would now be deadly.} 15. h4 {[%emt 0:00:41]} g4 {[%emt 0:00:08]} 16. Nh2 {[%emt 0:00:02][%cal Bf3h2,Bh2g4,Bg4f6][%mdl 32]} Ng6 {[%emt 0:06:12]} 17. Kh1 {[%emt 0:00:14]} (17. Nb3 $15 Nxb3 18. Qxb3) 17... c6 {[%emt 0:05:00]} 18. Ba2 {[%emt 0:03:03]} O-O $2 {[%emt 0:02:52]} (18... cxb5 $6 19. axb5 axb5 20. f3 $14) (18... Rh7 $17 {keeps the pressure on.}) 19. f3 $16 {[%emt 0:30:36][%cal Rf3g4]} Nxh4 {[%emt 0:09:33]} 20. fxg4 {[%emt 0:01:08]} hxg4 {[%emt 0:03:00]} 21. Nxg4 {[%emt 0:00:40]} Ng6 $2 {[%emt 0:16:55] This move loses the game for Black.} (21... Qg5 $16) 22. Nf6+ $18 {[%emt 0:28:48]} Kg7 {[%emt 0:00:14][%cal Bg8g7,Bg7h6,Bh6g5,Bg5f6][%mdl 32] [#]} 23. Bh4 $1 {[%emt 0:06:02]} Rh8 {[%emt 0:33:10][%cal Rh8h4]} 24. Nh5+ {[%emt 0:02:25]} Rxh5 {[%emt 0:00:17]} 25. Qxh5 {[%emt 0:00:13]} Qxh4+ {[%emt 0:00:05]} 26. Qxh4 {[%emt 0:00:02]} Nxh4 {[%emt 0:00:12]} 27. Rxf7+ {[%emt 0:03:58]} Kh6 {[%emt 0:00:23] [#]} 28. g3 $1 {[%emt 0:03:16]} Ng6 {[%emt 0:00:05]} (28... axb5 29. gxh4 Bg4 30. Rf6+ Kg7) 29. Kg2 {[%emt 0:00:11]} Bg4 {[%emt 0:00:35]} 30. Rh1+ {[%emt 0:01:17]} Kg5 {[%emt 0:00:10]} 31. bxa6 {[%emt 0:07:07]} bxa6 {[%emt 0:00:29] [#]} 32. Be6 $1 {[%emt 0:01:20]} Nh8 {[%emt 0:13:15][%cal Oh8f7]} (32... Bxe6 33. Nf3+ Kg4 34. Rg7 Bg8 35. Rxg6#) 33. Rg7+ {[%emt 0:05:15]} Kf6 {[%emt 0:00:15]} 34. Rxa7 {[%emt 0:00:48]} Rxa7 {[%emt 0:00:14]} 35. Bxg4 {[%emt 0:00:03]} Rb7 {[%emt 0:02:35]} (35... Ng6 $142 36. Bf5 Kg7 37. Bxg6 Kxg6) 36. Kf3 {[%emt 0:06:39]} ({White must play} 36. Rxh8 $18 Rb2 37. Kh3 Rxd2 38. Rh6+ Ke7 39. Re6+ Kd8 40. Rxd6+ Kc7 41. Rd7+ Kb6 42. Be6) 36... Nf7 $16 {[%emt 0:00:42] [#]} 37. Ke3 $1 {[%emt 0:00:15]} d5 {[%emt 0:01:56]} (37... Rb2 {might work better.} 38. Rf1+ Ke7) 38. Bf3 {[%emt 0:03:32]} Ke6 {[%emt 0:00:32]} 39. Rh7 {[%emt 0:01:54] exd5+ would now be deadly.} Rd7 {[%emt 0:00:38]} (39... Kd6 40. exd5 cxd5 41. Nc4+ Nxc4+ 42. dxc4 d4+ 43. Kd3 (43. cxd4 Rb3+ 44. Ke2 Rxf3 $17) 43... Rb3 44. Rxf7 Rxc3+ 45. Kd2 Ra3) 40. Bg4+ {[%emt 0:00:03] Weighted Error Value: White=0.25 (precise) /Black=0.62  Loses game:     	---       	Black=1      Mistake:       	White=3     	Black=5      Inaccurate:     	White=2     	Black=2      OK:         	White=11    	Black=10     Best:        	White=6     	Black=5      Strong:       	White=1     	---        Brilliant:      	White=1     	---} 1-0

[Event "Fagernes Chess GM-Swiss 2025"]
[Site "Fagernes"]
[Date "2025.04.17"]
[Round "6.10"]
[White "Rozentalis, Eduardas"]
[Black "Grave, Jacob Templen"]
[Result "1-0"]
[Annotator "RC"]
[ECO "C26"]
[WhiteElo "2481"]
[BlackElo "2337"]
[PlyCount "93"]
[EventDate "2025.04.12"]
[EventCountry "NOR"]
[SourceTitle "playchess.com"]
[Source "ChessBase"]
[SourceQuality "1"]
[TimeControl "40/6000+30:2400+30"]

1. e4 {[%emt 0:00:03]} e5 {[%emt 0:01:36]} 2. Nf3 {[%emt 0:01:08]} Nc6 {[%emt 0:00:05]} 3. Nc3 {[%emt 0:00:33]} Nf6 {[%emt 0:00:27]} 4. g3 {[%emt 0:00:06]} Bc5 {[%emt 0:02:22]} 5. Bg2 {[%emt 0:00:35]} d6 {[%emt 0:01:29]} 6. d3 {[%emt 0:00:48]} a5 {[%emt 0:00:06]} 7. O-O {[%emt 0:02:08]} O-O {[%emt 0:01:25]} 8. h3 {[%emt 0:06:07]} h6 {[%emt 0:09:29]} 9. Be3 {[%emt 0:02:49]} Bxe3 {[%emt 0:03:09]} 10. fxe3 {[%emt 0:00:25]} Ne7 {[%emt 0:02:06]} 11. Nh4 {[%emt 0:00:41]} c6 {[%emt 0:15:37]} 12. d4 {[%emt 0:08:35]} a4 {[%emt 0:03:59]} 13. a3 {[%emt 0:07:19]} d5 {[%emt 0:11:06]} 14. exd5 {[%emt 0:24:24]} Nfxd5 {[%emt 0:02:03]} 15. Nxd5 {[%emt 0:01:50]} Nxd5 {[%emt 0:00:32]} 16. Qd3 {[%emt 0:00:15]} exd4 {[%emt 0:14:24]} 17. exd4 {[%emt 0:00:31]} Be6 {[%emt 0:00:20]} 18. Rf2 {[%emt 0:06:35]} Nb6 {[%emt 0:03:17]} 19. Re1 {[%emt 0:07:17]} Qd7 {[%emt 0:02:55]} 20. Nf3 {[%emt 0:02:19]} Bxh3 {[%emt 0:08:10]} 21. Bxh3 {[%emt 0:02:12]} Qxh3 {[%emt 0:00:05]} 22. Ng5 {[%emt 0:00:06]} hxg5 {[%emt 0:03:00]} 23. Rh2 {[%emt 0:00:14]} Qxh2+ {[%emt 0:01:39]} 24. Kxh2 {[%emt 0:00:13]} Rfe8 {[%emt 0:01:10]} 25. Rxe8+ {[%emt 0:03:15]} Rxe8 {[%emt 0:00:04]} 26. c4 {[%emt 0:00:21]} Nd7 {[%emt 0:07:16]} 27. d5 {[%emt 0:02:09]} Ne5 {[%emt 0:01:19]} 28. Qe4 {[%emt 0:03:53]} g4 {[%emt 0:01:14]} 29. Kg2 {[%emt 0:00:49]} f6 {[%emt 0:02:10]} 30. c5 {[%emt 0:08:45]} cxd5 {[%emt 0:02:12]} 31. Qxd5+ {[%emt 0:02:53]} Kf8 {[%emt 0:01:15]} 32. Qd4 {[%emt 0:04:08]} Re7 {[%emt 0:02:32]} 33. Qxa4 {[%emt 0:03:12]} f5 {[%emt 0:02:24]} 34. Qf4 {[%emt 0:05:05]} g6 {[%emt 0:00:30]} 35. b4 {[%emt 0:00:38]} Nf3 {[%emt 0:02:40]} 36. Kf2 {[%emt 0:00:54]} Kg7 {[%emt 0:00:38]} 37. b5 {[%emt 0:01:29]} Re5 {[%emt 0:01:07]} 38. c6 {[%emt 0:01:36]} bxc6 {[%emt 0:00:32]} 39. bxc6 {[%emt 0:01:00]} Rc5 {[%emt 0:00:58]} 40. Qb4 {[%emt 0:00:28]} Rc2+ {[%emt 0:02:28]} 41. Ke3 {[%emt 0:40:19]} Kh6 {[%emt 0:08:31]} 42. Qf8+ {[%emt 0:00:00]} Kh7 {[%emt 0:02:47]} 43. Qe7+ {[%emt 0:00:00]} Kh6 {[%emt 0:00:05]} 44. c7 {[%emt 0:00:00]} Rc3+ {[%emt 0:00:51]} 45. Ke2 {[%emt 0:00:00]} Nd4+ {[%emt 0:00:27]} 46. Kd2 {[%emt 0:00:00]} Nb5 {[%emt 0:00:15]} 47. Qf8+ {[%emt 0:00:00]} 1-0

[Event "Fagernes Chess GM-Swiss 2025"]
[Site "Fagernes"]
[Date "2025.04.17"]
[Round "6.11"]
[White "Bazakutsa, Svyatoslav"]
[Black "Kreken, Eivind Grunt"]
[Result "0-1"]
[Annotator "RC"]
[ECO "D20"]
[WhiteElo "2474"]
[BlackElo "2326"]
[PlyCount "98"]
[EventDate "2025.04.12"]
[EventCountry "NOR"]
[SourceTitle "playchess.com"]
[Source "ChessBase"]
[SourceQuality "1"]
[TimeControl "40/6000+30:2400+30"]

1. d4 {[%emt 0:02:54]} d5 {[%emt 0:00:06]} 2. c4 {[%emt 0:00:06]} dxc4 {[%emt 0:00:08]} 3. e4 {[%emt 0:00:19]} Nf6 {[%emt 0:00:18]} 4. e5 {[%emt 0:00:06]} Nd5 {[%emt 0:00:04]} 5. Bxc4 {[%emt 0:00:14]} Bf5 {[%emt 0:00:15]} 6. Nc3 {[%emt 0:00:39]} Nb4 {[%emt 0:01:02]} 7. e6 {[%emt 0:00:55]} fxe6 {[%emt 0:08:35]} 8. g4 {[%emt 0:00:36]} Bc2 {[%emt 0:04:10]} 9. Qe2 {[%emt 0:00:42]} Bg6 {[%emt 0:28:14]} 10. Nf3 {[%emt 0:03:50]} Nc2+ {[%emt 0:01:41]} 11. Kf1 {[%emt 0:00:19]} Nc6 {[%emt 0:24:36]} 12. Be3 {[%emt 0:13:38]} Nxa1 {[%emt 0:04:03]} 13. Bxe6 {[%emt 0:02:21]} a6 {[%emt 0:13:14]} 14. Bf4 {[%emt 0:33:44]} Nxd4 {[%emt 0:05:28]} 15. Nxd4 {[%emt 0:00:28]} Qxd4 {[%emt 0:00:11]} 16. Be5 {[%emt 0:00:06]} Qd3 {[%emt 0:03:22]} 17. Nd5 {[%emt 0:00:10]} Rc8 {[%emt 0:05:22]} 18. f3 {[%emt 0:01:33]} c6 {[%emt 0:01:26]} 19. Nf4 {[%emt 0:00:26]} Qxe2+ {[%emt 0:01:32]} 20. Kxe2 {[%emt 0:00:07]} Rd8 {[%emt 0:00:19]} 21. Rxa1 {[%emt 0:03:08]} Bf7 {[%emt 0:00:24]} 22. h4 {[%emt 0:05:32]} Rg8 {[%emt 0:00:34]} 23. h5 {[%emt 0:00:16]} Rd6 {[%emt 0:03:43]} 24. Bxd6 {[%emt 0:00:59]} exd6 {[%emt 0:00:15]} 25. Bc8 {[%emt 0:00:10]} b5 {[%emt 0:03:11]} 26. Bxa6 {[%emt 0:01:11]} Kd7 {[%emt 0:00:24]} 27. a4 {[%emt 0:01:12]} b4 {[%emt 0:00:38]} 28. Bd3 {[%emt 0:04:57]} Be7 {[%emt 0:00:39]} 29. Bxh7 {[%emt 0:02:27]} Re8 {[%emt 0:00:00]} 30. Nd3 {[%emt 0:00:07]} c5 {[%emt 0:00:43]} 31. Kd2 {[%emt 0:01:24]} Bf6 {[%emt 0:00:28]} 32. a5 {[%emt 0:10:50]} b3 {[%emt 0:00:32]} 33. a6 {[%emt 0:02:43]} Bd5 {[%emt 0:00:39]} 34. Be4 {[%emt 0:01:50]} Bxe4 {[%emt 0:00:19]} 35. fxe4 {[%emt 0:00:01]} c4 {[%emt 0:00:38]} 36. a7 {[%emt 0:02:11]} Ra8 {[%emt 0:00:01]} 37. Nb4 {[%emt 0:03:22]} Bxb2 {[%emt 0:00:03]} 38. Nd5 {[%emt 0:00:03]} c3+ {[%emt 0:00:50]} 39. Kd3 {[%emt 0:00:02]} Bxa1 {[%emt 0:00:44]} 40. Nb6+ {[%emt 0:00:02]} Kc6 {[%emt 0:00:41]} 41. Nxa8 {[%emt 0:40:09]} c2 {[%emt 0:05:11]} 42. Nb6 {[%emt 0:00:00]} Kxb6 {[%emt 0:00:47]} 43. a8=Q {[%emt 0:00:00]} c1=Q {[%emt 0:00:12]} 44. Qb8+ {[%emt 0:00:00]} Ka5 {[%emt 0:02:10]} 45. Qxb3 {[%emt 0:00:00]} Qf1+ {[%emt 0:06:08]} 46. Kc2 {[%emt 0:00:00]} Qe2+ {[%emt 0:04:11]} 47. Kc1 {[%emt 0:00:00]} Qe1+ {[%emt 0:00:43]} 48. Kc2 {[%emt 0:00:00]} Qxe4+ {[%emt 0:00:09]} 49. Kc1 {[%emt 0:00:00]} Be5 {[%emt 0:03:39]} 0-1

[Event "Fagernes Chess GM-Swiss 2025"]
[Site "Fagernes"]
[Date "2025.04.17"]
[Round "6.12"]
[White "Kaasen, Tor Fredrik"]
[Black "Adharsh K"]
[Result "1/2-1/2"]
[Annotator "RC"]
[ECO "B67"]
[WhiteElo "2472"]
[BlackElo "2317"]
[PlyCount "72"]
[EventDate "2025.04.12"]
[EventCountry "NOR"]
[SourceTitle "playchess.com"]
[Source "ChessBase"]
[SourceQuality "1"]
[TimeControl "40/6000+30:2400+30"]

1. e4 {[%emt 0:04:18]} c5 {[%emt 0:00:19]} 2. Nf3 {[%emt 0:00:23]} d6 {[%emt 0:00:05]} 3. d4 {[%emt 0:00:48]} cxd4 {[%emt 0:00:05]} 4. Nxd4 {[%emt 0:00:06]} Nf6 {[%emt 0:00:04]} 5. Nc3 {[%emt 0:00:08]} Nc6 {[%emt 0:00:04]} 6. Bg5 {[%emt 0:01:04]} e6 {[%emt 0:00:04]} 7. Qd2 {[%emt 0:00:19]} Be7 {[%emt 0:00:07]} 8. O-O-O {[%emt 0:00:19]} a6 {[%emt 0:00:01]} 9. Kb1 {[%emt 0:00:41]} Bd7 {[%emt 0:00:23]} 10. f3 {[%emt 0:00:54]} Nxd4 {[%emt 0:01:01]} 11. Qxd4 {[%emt 0:00:08]} Qc7 {[%emt 0:01:35]} 12. Qd2 {[%emt 0:00:17]} b5 {[%emt 0:01:20]} 13. h4 {[%emt 0:00:24]} h6 {[%emt 0:13:12]} 14. Be3 {[%emt 0:01:28]} h5 {[%emt 0:00:16]} 15. Bd3 {[%emt 0:00:16]} b4 {[%emt 0:12:34]} 16. Ne2 {[%emt 0:00:20]} a5 {[%emt 0:00:12]} 17. Rc1 {[%emt 0:00:08]} Qb7 {[%emt 0:06:01]} 18. c4 {[%emt 0:04:01]} bxc3 {[%emt 0:00:30]} 19. Rxc3 {[%emt 0:02:39]} O-O {[%emt 0:02:28]} 20. Rb3 {[%emt 0:02:21]} Qc8 {[%emt 0:01:42]} 21. Rc1 {[%emt 0:00:37]} Qe8 {[%emt 0:05:31]} 22. Nd4 {[%emt 0:04:25]} a4 {[%emt 0:02:20]} 23. Rbc3 {[%emt 0:06:37]} Qb8 {[%emt 0:05:17]} 24. Bg5 {[%emt 0:20:18]} Qb4 {[%emt 0:24:56]} 25. Qf2 {[%emt 0:19:51]} Qb6 {[%emt 0:01:52]} 26. Be3 {[%emt 0:00:00]} Qb8 {[%emt 0:09:24]} 27. Rc7 {[%emt 0:07:15]} Bd8 {[%emt 0:01:27]} 28. R7c2 {[%emt 0:01:50]} d5 {[%emt 0:04:30]} 29. Bg5 {[%emt 0:17:27]} dxe4 {[%emt 0:02:55]} 30. Bxe4 {[%emt 0:00:49]} Nxe4 {[%emt 0:01:00]} 31. fxe4 {[%emt 0:00:00]} Qe5 {[%emt 0:00:45]} 32. Bxd8 {[%emt 0:00:54]} Raxd8 {[%emt 0:00:17]} 33. Qe3 {[%emt 0:00:27]} f5 {[%emt 0:02:08]} 34. Re2 {[%emt 0:09:45]} fxe4 {[%emt 0:05:16]} 35. Nf3 {[%emt 0:01:55]} Qf5 {[%emt 0:03:41]} 36. Qxe4 {[%emt 0:00:22]} Bb5 {[%emt 0:00:16]} 1/2-1/2

[Event "Fagernes Chess GM-Swiss 2025"]
[Site "Fagernes"]
[Date "2025.04.17"]
[Round "6.13"]
[White "Myagmarsuren, Evsuld"]
[Black "Zhou, Yang-Fan"]
[Result "1/2-1/2"]
[Annotator "RC"]
[ECO "B21"]
[WhiteElo "2305"]
[BlackElo "2418"]
[PlyCount "57"]
[EventDate "2025.04.12"]
[EventCountry "NOR"]
[SourceTitle "playchess.com"]
[Source "ChessBase"]
[SourceQuality "1"]
[TimeControl "40/6000+30:2400+30"]

1. e4 c5 2. d3 Nc6 3. f4 g6 4. Nf3 Bg7 5. Be2 d5 6. O-O e6 7. c3 Nge7 8. Na3 O-O 9. Nc2 b5 10. Be3 d4 11. cxd4 cxd4 12. Bf2 Qb6 13. Qd2 Rd8 14. Rfc1 b4 15. Bh4 f6 16. e5 Rf8 17. exf6 Bxf6 18. Bxf6 Rxf6 19. Ne5 Nxe5 20. fxe5 Rf5 21. Qxb4 Qxb4 22. Nxb4 Rxe5 23. Bf3 Rb8 24. Rc7 Rxb4 25. Rxe7 Rc5 26. b3 e5 27. Rf1 Bf5 28. Be4 Bxe4 29. dxe4 1/2-1/2

[Event "Fagernes Chess GM-Swiss 2025"]
[Site "Fagernes"]
[Date "2025.04.17"]
[Round "6.14"]
[White "Fiskaaen, Martin Holten"]
[Black "Vestby-Ellingsen, Mads"]
[Result "1/2-1/2"]
[Annotator "RC"]
[ECO "A05"]
[WhiteElo "2283"]
[BlackElo "2398"]
[PlyCount "57"]
[EventDate "2025.04.12"]
[EventCountry "NOR"]
[SourceTitle "playchess.com"]
[Source "ChessBase"]
[SourceQuality "1"]
[TimeControl "40/6000+30:2400+30"]

1. Nf3 {[%emt 0:00:17]} Nf6 {[%emt 0:03:46]} 2. g3 {[%emt 0:01:23]} b5 {[%emt 0:03:37]} 3. Bg2 {[%emt 0:03:44]} Bb7 {[%emt 0:00:59]} 4. O-O {[%emt 0:00:30]} e6 {[%emt 0:00:21]} 5. b3 {[%emt 0:03:58]} c5 {[%emt 0:01:57]} 6. c4 {[%emt 0:03:42]} bxc4 {[%emt 0:03:46]} 7. bxc4 {[%emt 0:00:40]} Be7 {[%emt 0:00:17]} 8. Nc3 {[%emt 0:02:48]} O-O {[%emt 0:04:49]} 9. Rb1 {[%emt 0:00:27]} Bc6 {[%emt 0:00:27]} 10. d3 {[%emt 0:05:36]} d6 {[%emt 0:01:16]} 11. e4 {[%emt 0:16:15]} Nbd7 {[%emt 0:03:47]} 12. Qe2 {[%emt 0:01:58]} Rb8 {[%emt 0:05:42]} 13. Bb2 {[%emt 0:04:37]} a6 {[%emt 0:09:54]} 14. Nd2 {[%emt 0:01:23]} Qc7 {[%emt 0:10:31]} 15. f4 {[%emt 0:01:18]} Nb6 {[%emt 0:04:05]} 16. f5 {[%emt 0:06:01]} e5 {[%emt 0:09:29]} 17. g4 {[%emt 0:05:25]} h6 {[%emt 0:00:56]} 18. h4 {[%emt 0:01:10]} Nh7 {[%emt 0:00:53]} 19. Nf3 {[%emt 0:00:38]} Na4 {[%emt 0:02:39]} 20. Nxa4 {[%emt 0:01:34]} Bxa4 {[%emt 0:00:10]} 21. Qd2 {[%emt 0:05:17]} Qd8 {[%emt 0:02:55]} 22. Qf2 {[%emt 0:00:32]} g5 {[%emt 0:01:23]} 23. hxg5 {[%emt 0:02:29]} Nxg5 {[%emt 0:01:42]} 24. Bc3 {[%emt 0:01:44]} Nxf3+ {[%emt 0:07:20]} 25. Bxf3 {[%emt 0:00:21]} Bg5 {[%emt 0:00:20]} 26. Kg2 {[%emt 0:03:53]} f6 {[%emt 0:01:21]} 27. Rb2 {[%emt 0:02:59]} Qc7 {[%emt 0:05:33]} 28. Rfb1 {[%emt 0:00:52]} Rfc8 {[%emt 0:00:28]} 29. Qe2 {[%emt 0:11:11]} 1/2-1/2

[Event "Fagernes Chess GM-Swiss 2025"]
[Site "Fagernes"]
[Date "2025.04.17"]
[Round "6.15"]
[White "Eliseev, Sergey"]
[Black "Aradhya, Garg"]
[Result "0-1"]
[Annotator "RC"]
[ECO "C49"]
[WhiteElo "2226"]
[BlackElo "2387"]
[PlyCount "94"]
[EventDate "2025.04.12"]
[EventCountry "NOR"]
[SourceTitle "playchess.com"]
[Source "ChessBase"]
[SourceQuality "1"]
[TimeControl "40/6000+30:2400+30"]

1. e4 {[%emt 0:00:04]} e5 {[%emt 0:00:15]} 2. Nf3 {[%emt 0:00:06]} Nc6 {[%emt 0:00:06]} 3. Nc3 {[%emt 0:00:07]} Nf6 {[%emt 0:00:17]} 4. Bb5 {[%emt 0:01:01]} Bb4 {[%emt 0:00:11]} 5. O-O {[%emt 0:00:06]} O-O {[%emt 0:00:05]} 6. Bxc6 {[%emt 0:00:06]} dxc6 {[%emt 0:00:07]} 7. d3 {[%emt 0:00:07]} Bg4 {[%emt 0:06:09]} 8. h3 {[%emt 0:00:21]} Bh5 {[%emt 0:00:01]} 9. Kh1 {[%emt 0:01:00]} Nd7 {[%emt 0:00:28]} 10. g4 {[%emt 0:00:38]} Bg6 {[%emt 0:00:01]} 11. Ne2 {[%emt 0:00:21]} Bd6 {[%emt 0:01:42]} 12. Ng3 {[%emt 0:01:10]} Nc5 {[%emt 0:00:08]} 13. h4 {[%emt 0:01:46]} f6 {[%emt 0:00:31]} 14. Rg1 {[%emt 0:05:21]} Ne6 {[%emt 0:01:30]} 15. Nf5 {[%emt 0:02:09]} Kh8 {[%emt 0:02:49]} 16. Qf1 {[%emt 0:04:44]} c5 {[%emt 0:05:24]} 17. Qh3 {[%emt 0:04:57]} Qe8 {[%emt 0:06:26]} 18. b3 {[%emt 0:16:04]} b5 {[%emt 0:02:36]} 19. c4 {[%emt 0:02:19]} bxc4 {[%emt 0:00:07]} 20. bxc4 {[%emt 0:00:32]} Rb8 {[%emt 0:00:26]} 21. h5 {[%emt 0:06:23]} Bf7 {[%emt 0:00:07]} 22. Qh4 {[%emt 0:00:35]} Rg8 {[%emt 0:08:20]} 23. Bh6 {[%emt 0:10:42]} Bf8 {[%emt 0:23:28]} 24. Rab1 {[%emt 0:26:11]} Rxb1 {[%emt 0:02:48]} 25. Rxb1 {[%emt 0:00:04]} Qd8 {[%emt 0:00:14]} 26. Bxg7+ {[%emt 0:07:07]} Bxg7 {[%emt 0:10:44]} 27. h6 {[%emt 0:00:12]} Bf8 {[%emt 0:00:07]} 28. Rb7 {[%emt 0:13:14]} Ng5 {[%emt 0:01:58]} 29. Nxg5 {[%emt 0:03:28]} Rxg5 {[%emt 0:01:04]} 30. Qh3 {[%emt 0:03:04]} Be6 {[%emt 0:00:28]} 31. Qf3 {[%emt 0:01:09]} Bxf5 {[%emt 0:06:03]} 32. exf5 {[%emt 0:00:05]} Bxh6 {[%emt 0:01:05]} 33. Rxa7 {[%emt 0:00:29]} Rg8 {[%emt 0:00:30]} 34. a4 {[%emt 0:01:08]} Bf4 {[%emt 0:07:51]} 35. a5 {[%emt 0:00:02]} h5 {[%emt 0:11:12]} 36. g5 {[%emt 0:00:17]} Bxg5 {[%emt 0:00:07]} 37. a6 {[%emt 0:00:48]} Bf4 {[%emt 0:03:30]} 38. Rb7 {[%emt 0:00:32]} Bh6 {[%emt 0:04:25]} 39. Qxh5 {[%emt 0:00:56]} Kh7 {[%emt 0:00:50]} 40. a7 {[%emt 0:00:31]} Qa8 {[%emt 0:02:31]} 41. Qf3 {[%emt 0:06:06]} Rg7 {[%emt 0:00:39]} 42. Qc6 {[%emt 0:04:53]} Bf4 {[%emt 0:12:29]} 43. f3 {[%emt 0:06:11]} Bh6 {[%emt 0:10:29]} 44. Kh2 {[%emt 0:03:06]} Bf4+ {[%emt 0:00:09]} 45. Kh3 {[%emt 0:02:57]} Qc8 {[%emt 0:02:58]} 46. Qxf6 {[%emt 0:17:56]} Qxb7 {[%emt 0:00:09]} 47. Qh4+ {[%emt 0:00:10]} Bh6 {[%emt 0:00:05]} 0-1

[Event "Fagernes Chess GM-Swiss 2025"]
[Site "Fagernes"]
[Date "2025.04.17"]
[Round "6.16"]
[White "Blomqvist, Erik"]
[Black "Aamodt, Peder Marcus"]
[Result "0-1"]
[Annotator "RC"]
[ECO "D02"]
[WhiteElo "2475"]
[BlackElo "2242"]
[PlyCount "60"]
[EventDate "2025.04.12"]
[EventCountry "NOR"]
[SourceTitle "playchess.com"]
[Source "ChessBase"]
[SourceQuality "1"]
[TimeControl "40/6000+30:2400+30"]

1. Nf3 {[%emt 0:03:00]} d5 {[%emt 0:00:38]} 2. d4 {[%emt 0:00:05]} Nf6 {[%emt 0:01:35]} 3. Bf4 {[%emt 0:00:07]} Bf5 {[%emt 0:00:19]} 4. e3 {[%emt 0:02:03]} e6 {[%emt 0:00:23]} 5. Bd3 {[%emt 0:00:10]} Bxd3 {[%emt 0:00:48]} 6. Qxd3 {[%emt 0:00:59]} Bd6 {[%emt 0:08:36]} 7. Qb5+ {[%emt 0:02:41]} Nbd7 {[%emt 0:00:56]} 8. Qxb7 {[%emt 0:02:55]} Rb8 {[%emt 0:02:10]} 9. Qxa7 {[%emt 0:00:18]} Bxf4 {[%emt 0:00:26]} 10. exf4 {[%emt 0:00:13]} Rxb2 {[%emt 0:00:09]} 11. Qa3 {[%emt 0:08:14]} Rxc2 {[%emt 0:18:29]} 12. Nc3 {[%emt 0:04:26]} Ne4 {[%emt 0:01:25]} 13. Nxe4 {[%emt 0:01:31]} dxe4 {[%emt 0:00:04]} 14. Ne5 {[%emt 0:00:36]} Nxe5 {[%emt 0:20:48]} 15. Qa4+ {[%emt 0:00:18]} Qd7 {[%emt 0:02:25]} 16. Qxc2 {[%emt 0:02:24]} Nd3+ {[%emt 0:00:05]} 17. Kf1 {[%emt 0:01:01]} Qxd4 {[%emt 0:00:11]} 18. Rb1 {[%emt 0:02:52]} O-O {[%emt 0:00:25]} 19. g3 {[%emt 0:01:11]} h5 {[%emt 0:15:50]} 20. Kg2 {[%emt 0:01:35]} Ra8 {[%emt 0:02:58]} 21. Rb5 {[%emt 0:04:49]} c5 {[%emt 0:03:03]} 22. Rhb1 {[%emt 0:00:36]} Kh7 {[%emt 0:01:40]} 23. Rb7 {[%emt 0:01:05]} Qd5 {[%emt 0:01:15]} 24. Qb3 {[%emt 0:01:19]} c4 {[%emt 0:01:46]} 25. Qd1 {[%emt 0:03:12]} e3+ {[%emt 0:07:51]} 26. Qf3 {[%emt 0:00:06]} Rxa2 {[%emt 0:00:21]} 27. Qxd5 {[%emt 0:00:08]} Rxf2+ {[%emt 0:00:31]} 28. Kh3 {[%emt 0:02:03]} exd5 {[%emt 0:00:05]} 29. Rxf7 {[%emt 0:00:05]} e2 {[%emt 0:00:51]} 30. Rbb7 {[%emt 0:01:03]} e1=Q {[%emt 0:00:50]} 0-1